[Event "Early-Titled-Tuesday-Blitz-March-19-2024"]
[Site "Chess.com"]
[Date "2024.03.19"]
[Round "1"]
[White "Goryachkina"]
[Black "IMSlavin"]
[Result "1/2-1/2"]
[WhiteElo "2654"]
[BlackElo "2325"]
[TimeControl "180+1"]
[EndTime "8:06:23 PDT"]
[Termination "Game drawn by repetition"]

1. e4 {[%clk 0:02:59.5]} 1... Nc6 {[%clk 0:02:59.1]} 2. Nc3 {[%clk 0:02:58.1]}
2... d6 {[%clk 0:02:59.4]} 3. Nf3 {[%clk 0:02:48.2]} 3... Nf6 {[%clk 0:02:59.1]}
4. d4 {[%clk 0:02:44.4]} 4... Bg4 {[%clk 0:02:58.6]} 5. Be3 {[%clk 0:02:43.2]}
5... a6 {[%clk 0:02:58.3]} 6. Be2 {[%clk 0:02:41.9]} 6... e5 {[%clk 0:02:58.3]}
7. d5 {[%clk 0:02:39.1]} 7... Ne7 {[%clk 0:02:58.5]} 8. Nd2 {[%clk 0:02:38.1]}
8... Bd7 {[%clk 0:02:58.4]} 9. O-O {[%clk 0:02:32.6]} 9... Ng6 {[%clk
0:02:58.8]} 10. Re1 {[%clk 0:02:28.1]} 10... Be7 {[%clk 0:02:58.8]} 11. a4
{[%clk 0:02:21.4]} 11... O-O {[%clk 0:02:58.2]} 12. a5 {[%clk 0:02:20.6]} 12...
h6 {[%clk 0:02:56.3]} 13. b4 {[%clk 0:02:16.8]} 13... Nh7 {[%clk 0:02:54.5]} 14.
b5 {[%clk 0:02:04.5]} 14... Bg5 {[%clk 0:02:49.1]} 15. bxa6 {[%clk 0:02:00.9]}
15... bxa6 {[%clk 0:02:48.1]} 16. Nf1 {[%clk 0:01:55.9]} 16... Nf4 {[%clk
0:02:43.5]} 17. Ng3 {[%clk 0:01:50.8]} 17... Nxe2+ {[%clk 0:02:41.5]} 18. Qxe2
{[%clk 0:01:46.5]} 18... Bxe3 {[%clk 0:02:40.5]} 19. Qxe3 {[%clk 0:01:42.9]}
19... Rb8 {[%clk 0:02:38.9]} 20. Rab1 {[%clk 0:01:37.2]} 20... Rxb1 {[%clk
0:02:23.8]} 21. Rxb1 {[%clk 0:01:36.7]} 21... Qa8 {[%clk 0:02:24.4]} 22. h3
{[%clk 0:01:26.1]} 22... Rb8 {[%clk 0:02:23.2]} 23. Qd3 {[%clk 0:01:24.4]} 23...
Rxb1+ {[%clk 0:02:20.9]} 24. Nxb1 {[%clk 0:01:24.6]} 24... Qb7 {[%clk
0:02:19.1]} 25. Qb3 {[%clk 0:01:20.4]} 25... Qxb3 {[%clk 0:02:08.4]} 26. cxb3
{[%clk 0:01:21.3]} 26... Nf6 {[%clk 0:02:08]} 27. Nc3 {[%clk 0:01:18.4]} 27...
Kf8 {[%clk 0:02:06.6]} 28. b4 {[%clk 0:01:12.3]} 28... Ke8 {[%clk 0:02:04.9]}
29. Kf1 {[%clk 0:01:00.7]} 29... Kd8 {[%clk 0:02:04]} 30. Ke2 {[%clk 0:01:01.1]}
30... Kc8 {[%clk 0:02:04.2]} 31. Kd3 {[%clk 0:01:01.3]} 31... Kb7 {[%clk
0:02:04.2]} 32. Kc4 {[%clk 0:01:01.4]} 32... h5 {[%clk 0:02:01.5]} 33. h4 {[%clk
0:00:51.9]} 33... g6 {[%clk 0:02:01.2]} 34. f3 {[%clk 0:00:51.8]} 34... c6
{[%clk 0:01:49.3]} 35. dxc6+ {[%clk 0:00:44]} 35... Kxc6 {[%clk 0:01:49.5]} 36.
Kd3 {[%clk 0:00:18.7]} 36... Be6 {[%clk 0:01:43.8]} 37. Nf1 {[%clk 0:00:18.5]}
37... Ne8 {[%clk 0:01:40.3]} 38. Ne3 {[%clk 0:00:18.4]} 38... Nc7 {[%clk
0:01:40.7]} 39. g4 {[%clk 0:00:17.2]} 39... Nb5 {[%clk 0:01:34.2]} 40. Nxb5
{[%clk 0:00:16.8]} 40... Kxb5 {[%clk 0:01:34]} 41. Kc3 {[%clk 0:00:17.3]} 41...
Kc6 {[%clk 0:01:26.6]} 42. Kd3 {[%clk 0:00:16.4]} 42... Kb5 {[%clk 0:01:24.7]}
43. Kc3 {[%clk 0:00:16.9]} 43... Kc6 {[%clk 0:01:25]} 44. Kd3 {[%clk 0:00:17.3]}
44... Kb5 {[%clk 0:01:25.4]} 1/2-1/2

[Event "Early-Titled-Tuesday-Blitz-March-19-2024"]
[Site "Chess.com"]
[Date "2024.03.19"]
[Round "1"]
[White "Kiborg95"]
[Black "ArchibaldCerveza29"]
[Result "1-0"]
[WhiteElo "2793"]
[BlackElo "2430"]
[TimeControl "180+1"]
[EndTime "8:06:25 PDT"]
[Termination "Kiborg95 won by checkmate"]

1. e4 {[%clk 0:02:55.3]} 1... e5 {[%clk 0:02:58.4]} 2. Nf3 {[%clk 0:02:53.8]}
2... Nf6 {[%clk 0:02:57.4]} 3. d3 {[%clk 0:02:53]} 3... Nc6 {[%clk 0:02:55.1]}
4. c3 {[%clk 0:02:53]} 4... d5 {[%clk 0:02:54.6]} 5. Nbd2 {[%clk 0:02:53.6]}
5... Be7 {[%clk 0:02:54.2]} 6. Be2 {[%clk 0:02:53.4]} 6... O-O {[%clk
0:02:54.1]} 7. O-O {[%clk 0:02:54.2]} 7... Re8 {[%clk 0:02:50.3]} 8. b4 {[%clk
0:02:54.6]} 8... a6 {[%clk 0:02:50.1]} 9. Bb2 {[%clk 0:02:54.5]} 9... h6 {[%clk
0:02:37.8]} 10. a4 {[%clk 0:02:53]} 10... Be6 {[%clk 0:02:32.7]} 11. b5 {[%clk
0:02:52.5]} 11... axb5 {[%clk 0:02:32.7]} 12. axb5 {[%clk 0:02:53.4]} 12... Na7
{[%clk 0:02:19]} 13. c4 {[%clk 0:02:53.5]} 13... dxe4 {[%clk 0:02:18.7]} 14.
dxe4 {[%clk 0:02:53.5]} 14... Bb4 {[%clk 0:02:03.6]} 15. Bxe5 {[%clk 0:02:41.2]}
15... Bxd2 {[%clk 0:02:03.5]} 16. Nxd2 {[%clk 0:02:34.5]} 16... c6 {[%clk
0:01:39.9]} 17. Bxf6 {[%clk 0:02:21.5]} 17... gxf6 {[%clk 0:01:34.5]} 18. Qc1
{[%clk 0:02:03.3]} 18... cxb5 {[%clk 0:01:27.1]} 19. cxb5 {[%clk 0:02:04.2]}
19... Qb6 {[%clk 0:01:24.7]} 20. Nf3 {[%clk 0:01:39.4]} 20... Nxb5 {[%clk
0:01:10.1]} 21. Rxa8 {[%clk 0:01:37.6]} 21... Rxa8 {[%clk 0:01:08.4]} 22. Qxh6
{[%clk 0:01:16.8]} 22... Nd4 {[%clk 0:01:02.2]} 23. Bd1 {[%clk 0:01:05.7]} 23...
Nxf3+ {[%clk 0:01:01.5]} 24. Bxf3 {[%clk 0:01:06.6]} 24... Qd4 {[%clk
0:01:01.4]} 25. h4 {[%clk 0:01:02.3]} 25... Bc4 {[%clk 0:00:51]} 26. Rd1 {[%clk
0:00:51]} 26... Qb6 {[%clk 0:00:47.3]} 27. e5 {[%clk 0:00:41.1]} 27... Ra2
{[%clk 0:00:45.7]} 28. exf6 {[%clk 0:00:37]} 28... Qxf2+ {[%clk 0:00:21.6]} 29.
Kh2 {[%clk 0:00:36.7]} 29... Rd2 {[%clk 0:00:14.4]} 30. Qg7# {[%clk 0:00:36.4]}
1-0

[Event "Early-Titled-Tuesday-Blitz-March-19-2024"]
[Site "Chess.com"]
[Date "2024.03.19"]
[Round "1"]
[White "ViktoriyaTarasova"]
[Black "GMAneta"]
[Result "0-1"]
[WhiteElo "2318"]
[BlackElo "2665"]
[TimeControl "180+1"]
[EndTime "8:06:25 PDT"]
[Termination "GMAneta won by resignation"]

1. d4 {[%clk 0:02:55.7]} 1... Nf6 {[%clk 0:02:56.6]} 2. c4 {[%clk 0:02:55.4]}
2... c5 {[%clk 0:02:56.5]} 3. d5 {[%clk 0:02:55.3]} 3... e6 {[%clk 0:02:56.6]}
4. Nc3 {[%clk 0:02:54.9]} 4... exd5 {[%clk 0:02:56.6]} 5. cxd5 {[%clk
0:02:54.3]} 5... d6 {[%clk 0:02:56.1]} 6. Nf3 {[%clk 0:02:54.3]} 6... g6 {[%clk
0:02:56]} 7. Bf4 {[%clk 0:02:54.5]} 7... a6 {[%clk 0:02:54.9]} 8. a4 {[%clk
0:02:53.8]} 8... Bg7 {[%clk 0:02:54.6]} 9. h3 {[%clk 0:02:54.2]} 9... O-O {[%clk
0:02:54.2]} 10. e3 {[%clk 0:02:54.8]} 10... Nh5 {[%clk 0:02:52.4]} 11. Bh2
{[%clk 0:02:53.3]} 11... f5 {[%clk 0:02:52.5]} 12. Be2 {[%clk 0:02:54]} 12...
Qe7 {[%clk 0:02:51.2]} 13. O-O {[%clk 0:02:52.8]} 13... Nd7 {[%clk 0:02:51.4]}
14. Re1 {[%clk 0:02:50.9]} 14... Rb8 {[%clk 0:02:44.3]} 15. Bf1 {[%clk
0:02:50.2]} 15... Ne5 {[%clk 0:02:40.9]} 16. Nxe5 {[%clk 0:02:45.9]} 16... Bxe5
{[%clk 0:02:40.4]} 17. Bxe5 {[%clk 0:02:42.7]} 17... Qxe5 {[%clk 0:02:40.1]} 18.
f4 {[%clk 0:02:39.2]} 18... Qe7 {[%clk 0:02:39.2]} 19. Qf3 {[%clk 0:02:39.4]}
19... Bd7 {[%clk 0:02:36.8]} 20. a5 {[%clk 0:02:36.1]} 20... b5 {[%clk
0:02:35.5]} 21. axb6 {[%clk 0:02:35.2]} 21... Rxb6 {[%clk 0:02:35.4]} 22. Rxa6
{[%clk 0:02:32.5]} 22... Rxb2 {[%clk 0:02:34.6]} 23. Ra7 {[%clk 0:02:32.9]}
23... Qd8 {[%clk 0:02:30.3]} 24. Rea1 {[%clk 0:02:22.2]} 24... Rc2 {[%clk
0:02:22.5]} 25. Ne2 {[%clk 0:02:19.3]} 25... Nf6 {[%clk 0:02:19.5]} 26. Ng3
{[%clk 0:02:13.6]} 26... Re8 {[%clk 0:02:13.4]} 27. h4 {[%clk 0:01:58.4]} 27...
Ng4 {[%clk 0:02:08.9]} 28. Bd3 {[%clk 0:01:26.2]} 28... Rd2 {[%clk 0:02:00.3]}
29. e4 {[%clk 0:01:18.2]} 29... Rf2 {[%clk 0:01:16.8]} 30. Qxf2 {[%clk
0:01:11.5]} 30... Nxf2 {[%clk 0:01:14.2]} 31. Kxf2 {[%clk 0:01:11.9]} 31... Qf6
{[%clk 0:01:08.6]} 32. e5 {[%clk 0:00:26.8]} 32... dxe5 {[%clk 0:01:04.3]} 33.
Rxd7 {[%clk 0:00:26.1]} 33... exf4 {[%clk 0:01:04.3]} 34. Raa7 {[%clk
0:00:12.3]} 34... Qd4+ {[%clk 0:01:02.1]} 35. Kf1 {[%clk 0:00:10.5]} 35... Qxd3+
{[%clk 0:01:01.7]} 0-1

[Event "Early-Titled-Tuesday-Blitz-March-19-2024"]
[Site "Chess.com"]
[Date "2024.03.19"]
[Round "1"]
[White "enriquebutti"]
[Black "tetrix83"]
[Result "0-1"]
[WhiteElo "2157"]
[BlackElo "2606"]
[TimeControl "180+1"]
[EndTime "8:06:27 PDT"]
[Termination "tetrix83 won by resignation"]

1. d4 {[%clk 0:02:59.1]} 1... Nf6 {[%clk 0:02:59.6]} 2. Nf3 {[%clk 0:02:58.7]}
2... g6 {[%clk 0:02:54.6]} 3. c4 {[%clk 0:02:55.5]} 3... Bg7 {[%clk 0:02:54.3]}
4. Nc3 {[%clk 0:02:55.3]} 4... d6 {[%clk 0:02:54.4]} 5. Bg5 {[%clk 0:02:54.8]}
5... h6 {[%clk 0:02:54.1]} 6. Bh4 {[%clk 0:02:53.8]} 6... g5 {[%clk 0:02:54.2]}
7. Bg3 {[%clk 0:02:53.4]} 7... Nh5 {[%clk 0:02:52.8]} 8. e3 {[%clk 0:02:53.1]}
8... c5 {[%clk 0:02:48.2]} 9. d5 {[%clk 0:02:49.6]} 9... Nxg3 {[%clk 0:02:47.1]}
10. hxg3 {[%clk 0:02:48.9]} 10... Qb6 {[%clk 0:02:47]} 11. Qc2 {[%clk
0:02:36.4]} 11... Na6 {[%clk 0:02:31.5]} 12. a3 {[%clk 0:02:31.2]} 12... Bf5
{[%clk 0:02:22]} 13. e4 {[%clk 0:02:30.6]} 13... Bg4 {[%clk 0:02:21.5]} 14. Nd2
{[%clk 0:02:24]} 14... Qa5 {[%clk 0:02:13.9]} 15. Rc1 {[%clk 0:02:16.7]} 15...
Nc7 {[%clk 0:02:10.5]} 16. Bd3 {[%clk 0:02:07.1]} 16... a6 {[%clk 0:02:04.6]}
17. Nb3 {[%clk 0:01:59.6]} 17... Qb6 {[%clk 0:02:00.7]} 18. O-O {[%clk
0:01:49.5]} 18... Qa7 {[%clk 0:01:48.8]} 19. Be2 {[%clk 0:01:43.6]} 19... Bd7
{[%clk 0:01:48.3]} 20. a4 {[%clk 0:01:38.5]} 20... O-O-O {[%clk 0:01:37.4]} 21.
Bh5 {[%clk 0:01:26.2]} 21... Rdf8 {[%clk 0:01:35.3]} 22. Nd2 {[%clk 0:01:24.3]}
22... Qb6 {[%clk 0:01:33.5]} 23. Rb1 {[%clk 0:01:22.7]} 23... Qb4 {[%clk
0:01:31.5]} 24. Na2 {[%clk 0:01:20.4]} 24... Qxa4 {[%clk 0:01:28.5]} 25. b3
{[%clk 0:01:20]} 25... Qa3 {[%clk 0:01:21.4]} 26. Nc1 {[%clk 0:01:07.4]} 26...
f5 {[%clk 0:01:19]} 27. Nd3 {[%clk 0:01:03.1]} 27... f4 {[%clk 0:01:12.1]} 28.
gxf4 {[%clk 0:00:57.6]} 28... gxf4 {[%clk 0:01:11.6]} 29. Nf3 {[%clk 0:00:57.1]}
29... Qa5 {[%clk 0:00:53.9]} 30. Nh4 {[%clk 0:00:55.4]} 30... Qc3 {[%clk
0:00:39.9]} 31. Qxc3 {[%clk 0:00:54.1]} 31... Bxc3 {[%clk 0:00:40.8]} 32. Ng6
{[%clk 0:00:53.4]} 32... Kd8 {[%clk 0:00:25.1]} 33. Nxh8 {[%clk 0:00:49.5]}
33... Bxh8 {[%clk 0:00:23.7]} 34. Nxf4 {[%clk 0:00:50.4]} 34... Rxf4 {[%clk
0:00:23.3]} 0-1

[Event "Early-Titled-Tuesday-Blitz-March-19-2024"]
[Site "Chess.com"]
[Date "2024.03.19"]
[Round "1"]
[White "esteban062000"]
[Black "Likvidator228"]
[Result "0-1"]
[WhiteElo "2149"]
[BlackElo "2604"]
[TimeControl "180+1"]
[EndTime "8:06:29 PDT"]
[Termination "Likvidator228 won by resignation"]

1. e4 {[%clk 0:03:00.4]} 1... c5 {[%clk 0:02:59]} 2. Nf3 {[%clk 0:02:59]} 2...
g6 {[%clk 0:02:59.1]} 3. d4 {[%clk 0:02:59.5]} 3... cxd4 {[%clk 0:02:59.4]} 4.
Nxd4 {[%clk 0:03:00.3]} 4... Bg7 {[%clk 0:02:59.6]} 5. c4 {[%clk 0:03:00.2]}
5... Nc6 {[%clk 0:02:59.9]} 6. Nxc6 {[%clk 0:02:59]} 6... bxc6 {[%clk
0:02:57.9]} 7. Nc3 {[%clk 0:02:59.6]} 7... d6 {[%clk 0:02:58.2]} 8. Qa4 {[%clk
0:02:58.1]} 8... Bd7 {[%clk 0:02:56.3]} 9. Bd3 {[%clk 0:02:57.1]} 9... Nf6
{[%clk 0:02:54.4]} 10. O-O {[%clk 0:02:56.3]} 10... O-O {[%clk 0:02:54.4]} 11.
Bd2 {[%clk 0:02:51.4]} 11... Rb8 {[%clk 0:02:34.9]} 12. Qc2 {[%clk 0:02:50.3]}
12... Qb6 {[%clk 0:02:31.7]} 13. b3 {[%clk 0:02:46.9]} 13... c5 {[%clk 0:02:26]}
14. f3 {[%clk 0:02:41.2]} 14... a5 {[%clk 0:02:20.3]} 15. Rab1 {[%clk
0:02:23.9]} 15... a4 {[%clk 0:01:51.7]} 16. bxa4 {[%clk 0:01:45.9]} 16... Qa6
{[%clk 0:01:51.4]} 17. a5 {[%clk 0:01:31.7]} 17... Rxb1 {[%clk 0:01:36.9]} 18.
Rxb1 {[%clk 0:01:28.7]} 18... Qxa5 {[%clk 0:01:37]} 19. Nb5 {[%clk 0:01:08.5]}
19... Qa6 {[%clk 0:01:28.7]} 20. Bc3 {[%clk 0:01:03.5]} 20... Bc6 {[%clk
0:01:23.7]} 21. a4 {[%clk 0:00:52.1]} 21... Nd7 {[%clk 0:01:21.9]} 22. Bxg7
{[%clk 0:00:37.3]} 22... Kxg7 {[%clk 0:01:22.8]} 23. Ra1 {[%clk 0:00:27]} 23...
Qa5 {[%clk 0:01:19.9]} 24. Qb2+ {[%clk 0:00:24.7]} 24... f6 {[%clk 0:01:19.8]}
25. Nc3 {[%clk 0:00:20.9]} 25... Rb8 {[%clk 0:01:18.1]} 26. Qc1 {[%clk
0:00:18.8]} 26... Ne5 {[%clk 0:01:15.1]} 27. Bf1 {[%clk 0:00:18.1]} 27... Rb4
{[%clk 0:01:13.3]} 28. Nd5 {[%clk 0:00:17.4]} 28... Bxd5 {[%clk 0:01:12.1]} 29.
cxd5 {[%clk 0:00:14.7]} 29... Rxa4 {[%clk 0:01:11.7]} 30. Rb1 {[%clk 0:00:15.1]}
30... Rb4 {[%clk 0:01:06.6]} 31. Ra1 {[%clk 0:00:15.4]} 31... Qb6 {[%clk
0:01:06.1]} 32. Qa3 {[%clk 0:00:14.3]} 32... c4+ {[%clk 0:01:03.6]} 33. Kh1
{[%clk 0:00:11.5]} 33... Rb1 {[%clk 0:01:00.8]} 34. Qa8 {[%clk 0:00:09.8]} 34...
c3 {[%clk 0:00:53.5]} 35. Rxb1 {[%clk 0:00:09.6]} 35... Qxb1 {[%clk 0:00:52.8]}
0-1

[Event "Early-Titled-Tuesday-Blitz-March-19-2024"]
[Site "Chess.com"]
[Date "2024.03.19"]
[Round "1"]
[White "baki83"]
[Black "Slovineanu"]
[Result "1-0"]
[WhiteElo "2844"]
[BlackElo "2478"]
[TimeControl "180+1"]
[EndTime "8:06:30 PDT"]
[Termination "baki83 won by resignation"]

1. e4 {[%clk 0:02:54.8]} 1... e5 {[%clk 0:02:58]} 2. Nf3 {[%clk 0:02:54.9]} 2...
Nc6 {[%clk 0:02:58.1]} 3. Bb5 {[%clk 0:02:54.7]} 3... a6 {[%clk 0:02:57.1]} 4.
Ba4 {[%clk 0:02:54.5]} 4... Bc5 {[%clk 0:02:56.7]} 5. c3 {[%clk 0:02:54.4]} 5...
Nge7 {[%clk 0:02:54.6]} 6. d4 {[%clk 0:02:54.3]} 6... exd4 {[%clk 0:02:53.4]} 7.
cxd4 {[%clk 0:02:55.2]} 7... Bb4+ {[%clk 0:02:53.4]} 8. Nc3 {[%clk 0:02:53.2]}
8... d5 {[%clk 0:02:53.2]} 9. exd5 {[%clk 0:02:52.8]} 9... Nxd5 {[%clk
0:02:52.5]} 10. O-O {[%clk 0:02:39.3]} 10... O-O {[%clk 0:02:46.8]} 11. Bxc6
{[%clk 0:02:34.1]} 11... bxc6 {[%clk 0:02:46.3]} 12. Ne4 {[%clk 0:02:33.3]}
12... Bf5 {[%clk 0:02:34.7]} 13. Ng3 {[%clk 0:02:32.6]} 13... Bg6 {[%clk
0:02:29.3]} 14. Ne5 {[%clk 0:02:28.2]} 14... Qf6 {[%clk 0:01:38.9]} 15. Nd7
{[%clk 0:02:24.3]} 15... Qh4 {[%clk 0:01:33.1]} 16. Nxf8 {[%clk 0:02:21.4]}
16... Rxf8 {[%clk 0:01:30.3]} 17. h3 {[%clk 0:02:11.9]} 17... f5 {[%clk
0:01:25.3]} 18. Bd2 {[%clk 0:01:54.7]} 18... Bd6 {[%clk 0:01:19.3]} 19. Nh1
{[%clk 0:01:35.1]} 19... Qxd4 {[%clk 0:01:13.7]} 20. Bc3 {[%clk 0:01:22.7]}
20... Qf4 {[%clk 0:01:05.2]} 21. Ng3 {[%clk 0:01:17.9]} 21... Nxc3 {[%clk
0:00:51.3]} 22. bxc3 {[%clk 0:01:17.1]} 22... Qg5 {[%clk 0:00:51.6]} 23. Ne2
{[%clk 0:01:09.8]} 23... f4 {[%clk 0:00:24.5]} 24. Nd4 {[%clk 0:00:55.9]} 24...
f3 {[%clk 0:00:19.1]} 25. Nxf3 {[%clk 0:00:54.2]} 25... Qf4 {[%clk 0:00:19.4]}
26. Re1 {[%clk 0:00:35.6]} 26... Be4 {[%clk 0:00:14.3]} 27. Qd4 {[%clk
0:00:33.3]} 27... c5 {[%clk 0:00:12.6]} 28. Qxe4 {[%clk 0:00:33.1]} 1-0

[Event "Early-Titled-Tuesday-Blitz-March-19-2024"]
[Site "Chess.com"]
[Date "2024.03.19"]
[Round "1"]
[White "GothamChess"]
[Black "Chessbard1972"]
[Result "1-0"]
[WhiteElo "2682"]
[BlackElo "2340"]
[TimeControl "180+1"]
[EndTime "8:06:31 PDT"]
[Termination "GothamChess won by checkmate"]

1. d4 {[%clk 0:03:00.9]} 1... Nf6 {[%clk 0:02:59.4]} 2. Bg5 {[%clk 0:03:01.5]}
2... Ne4 {[%clk 0:02:59.1]} 3. h4 {[%clk 0:03:01.7]} 3... h6 {[%clk 0:02:58.2]}
4. Bf4 {[%clk 0:03:01.5]} 4... d5 {[%clk 0:02:58.3]} 5. e3 {[%clk 0:03:01.7]}
5... Bf5 {[%clk 0:02:57.1]} 6. g4 {[%clk 0:03:00.8]} 6... Bh7 {[%clk 0:02:55.9]}
7. Bd3 {[%clk 0:02:54.3]} 7... c5 {[%clk 0:02:51.9]} 8. f3 {[%clk 0:02:45.7]}
8... Nf6 {[%clk 0:02:50.2]} 9. Bxh7 {[%clk 0:02:45.3]} 9... Nxh7 {[%clk
0:02:50.2]} 10. c3 {[%clk 0:02:43.2]} 10... Qb6 {[%clk 0:02:47.3]} 11. Qb3
{[%clk 0:02:42.8]} 11... c4 {[%clk 0:02:46.3]} 12. Qc2 {[%clk 0:02:40.2]} 12...
Nc6 {[%clk 0:02:41.7]} 13. Nd2 {[%clk 0:02:31.4]} 13... e6 {[%clk 0:02:40]} 14.
g5 {[%clk 0:02:29]} 14... O-O-O {[%clk 0:02:27]} 15. b3 {[%clk 0:02:16.2]} 15...
cxb3 {[%clk 0:02:23.6]} 16. axb3 {[%clk 0:02:12.2]} 16... Bd6 {[%clk 0:02:22.2]}
17. Bxd6 {[%clk 0:02:05.4]} 17... Rxd6 {[%clk 0:02:20.8]} 18. f4 {[%clk
0:02:05]} 18... Nf8 {[%clk 0:02:12]} 19. Ngf3 {[%clk 0:02:02.4]} 19... f6 {[%clk
0:02:09.6]} 20. gxf6 {[%clk 0:02:00]} 20... gxf6 {[%clk 0:02:09.4]} 21. Rg1
{[%clk 0:01:58.5]} 21... Rd7 {[%clk 0:02:08.3]} 22. b4 {[%clk 0:01:44.3]} 22...
Kb8 {[%clk 0:02:05.7]} 23. Nb3 {[%clk 0:01:43.7]} 23... Re7 {[%clk 0:01:53.1]}
24. Nc5 {[%clk 0:01:39.8]} 24... Nd7 {[%clk 0:01:52.4]} 25. Kf2 {[%clk
0:01:34.4]} 25... e5 {[%clk 0:01:46.3]} 26. Qf5 {[%clk 0:01:12.6]} 26... Nxc5
{[%clk 0:01:42.4]} 27. dxc5 {[%clk 0:01:12.5]} 27... Qb5 {[%clk 0:01:34]} 28.
Qxf6 {[%clk 0:01:11.7]} 28... Rhe8 {[%clk 0:01:32.8]} 29. fxe5 {[%clk
0:01:01.4]} 29... Nxe5 {[%clk 0:01:30.3]} 30. Qd6+ {[%clk 0:01:01.2]} 30... Kc8
{[%clk 0:01:21.1]} 31. Rxa7 {[%clk 0:00:35.1]} 31... Nd3+ {[%clk 0:01:20]} 32.
Kg2 {[%clk 0:00:29.2]} 32... Rg7+ {[%clk 0:01:10.5]} 33. Kh2 {[%clk 0:00:28.7]}
33... Qa6 {[%clk 0:00:44.7]} 34. Rxg7 {[%clk 0:00:22.3]} 34... Qxa7 {[%clk
0:00:39.9]} 35. Qd7+ {[%clk 0:00:17.1]} 35... Kb8 {[%clk 0:00:39]} 36. Qxe8#
{[%clk 0:00:16.5]} 1-0

[Event "Early-Titled-Tuesday-Blitz-March-19-2024"]
[Site "Chess.com"]
[Date "2024.03.19"]
[Round "1"]
[White "NikitaShnadrygin"]
[Black "agvania123"]
[Result "1/2-1/2"]
[WhiteElo "2724"]
[BlackElo "2403"]
[TimeControl "180+1"]
[EndTime "8:06:32 PDT"]
[Termination "Game drawn by repetition"]

1. Nf3 {[%clk 0:03:00.9]} 1... Nf6 {[%clk 0:02:59.7]} 2. g3 {[%clk 0:03:01.3]}
2... g6 {[%clk 0:03:00.6]} 3. Bg2 {[%clk 0:03:02]} 3... Bg7 {[%clk 0:03:01.2]}
4. O-O {[%clk 0:03:02.8]} 4... O-O {[%clk 0:03:01.9]} 5. d4 {[%clk 0:03:03.3]}
5... d5 {[%clk 0:03:02.4]} 6. b3 {[%clk 0:03:03.8]} 6... c6 {[%clk 0:03:02.8]}
7. Bb2 {[%clk 0:03:03.1]} 7... Bf5 {[%clk 0:03:03.2]} 8. Nbd2 {[%clk 0:03:03.4]}
8... Nbd7 {[%clk 0:03:03.5]} 9. Ne5 {[%clk 0:03:03.6]} 9... Nxe5 {[%clk
0:03:01.9]} 10. dxe5 {[%clk 0:03:04.5]} 10... Ne4 {[%clk 0:03:00.5]} 11. e3
{[%clk 0:02:22.2]} 11... Nxd2 {[%clk 0:02:48.7]} 12. Qxd2 {[%clk 0:02:22.4]}
12... Qc7 {[%clk 0:02:49.3]} 13. f4 {[%clk 0:02:22.3]} 13... f6 {[%clk
0:02:40.5]} 14. exf6 {[%clk 0:02:17.5]} 14... Bxf6 {[%clk 0:02:24.1]} 15. Bxf6
{[%clk 0:01:39.5]} 15... exf6 {[%clk 0:02:25]} 16. Qd4 {[%clk 0:01:39.3]} 16...
Rae8 {[%clk 0:02:21.4]} 17. c4 {[%clk 0:01:33.6]} 17... dxc4 {[%clk 0:02:17.6]}
18. Qxc4+ {[%clk 0:01:34]} 18... Qf7 {[%clk 0:02:12]} 19. Qd4 {[%clk 0:01:31]}
19... Qe7 {[%clk 0:02:02.5]} 20. Rfe1 {[%clk 0:01:28.3]} 20... Be4 {[%clk
0:01:35.6]} 21. Bxe4 {[%clk 0:01:10.2]} 21... Qxe4 {[%clk 0:01:36.5]} 22. Qxa7
{[%clk 0:01:10.6]} 22... Rd8 {[%clk 0:01:32.4]} 23. Re2 {[%clk 0:01:02.4]} 23...
Rd3 {[%clk 0:01:10.3]} 24. Rae1 {[%clk 0:01:00.5]} 24... Rfd8 {[%clk 0:00:54.8]}
25. Qxb7 {[%clk 0:00:32.3]} 25... Rd1 {[%clk 0:00:54.7]} 26. Qc7 {[%clk
0:00:14.2]} 26... Rxe1+ {[%clk 0:00:50.6]} 27. Rxe1 {[%clk 0:00:14.1]} 27... Rd2
{[%clk 0:00:51]} 28. Qc8+ {[%clk 0:00:14.7]} 28... Kg7 {[%clk 0:00:49.3]} 29.
Qh3 {[%clk 0:00:15.3]} 29... Rxa2 {[%clk 0:00:44.6]} 30. Qd7+ {[%clk 0:00:12]}
30... Kh6 {[%clk 0:00:42.8]} 31. Qh3+ {[%clk 0:00:12.2]} 31... Kg7 {[%clk
0:00:43.2]} 32. Qd7+ {[%clk 0:00:12]} 32... Kh6 {[%clk 0:00:43.3]} 33. Qh3+
{[%clk 0:00:12.2]} 33... Kg7 {[%clk 0:00:43.6]} 1/2-1/2

[Event "Early-Titled-Tuesday-Blitz-March-19-2024"]
[Site "Chess.com"]
[Date "2024.03.19"]
[Round "1"]
[White "jimmy-schlumpf"]
[Black "bescmelasti"]
[Result "1-0"]
[WhiteElo "2341"]
[BlackElo "2654"]
[TimeControl "180+1"]
[EndTime "8:06:33 PDT"]
[Termination "jimmy-schlumpf won by resignation"]

1. d4 {[%clk 0:03:00.9]} 1... Nf6 {[%clk 0:02:58.3]} 2. Nf3 {[%clk 0:02:59.4]}
2... e6 {[%clk 0:02:57.8]} 3. c4 {[%clk 0:02:58.7]} 3... c5 {[%clk 0:02:57.3]}
4. Nc3 {[%clk 0:02:54.8]} 4... cxd4 {[%clk 0:02:57.3]} 5. Nxd4 {[%clk 0:02:54]}
5... Nc6 {[%clk 0:02:58.2]} 6. g3 {[%clk 0:02:49.3]} 6... Qb6 {[%clk 0:02:56.6]}
7. Nc2 {[%clk 0:02:48.4]} 7... Ne5 {[%clk 0:02:48]} 8. b3 {[%clk 0:02:37.8]}
8... Bc5 {[%clk 0:02:41.8]} 9. Be3 {[%clk 0:02:27.9]} 9... Bxe3 {[%clk
0:02:17.6]} 10. Nxe3 {[%clk 0:02:27.2]} 10... Nfg4 {[%clk 0:02:03.3]} 11. Nxg4
{[%clk 0:02:17.7]} 11... Nxg4 {[%clk 0:02:04.2]} 12. e3 {[%clk 0:02:15.7]} 12...
Ne5 {[%clk 0:01:32]} 13. Bg2 {[%clk 0:02:10.3]} 13... O-O {[%clk 0:01:29]} 14.
O-O {[%clk 0:02:09.2]} 14... d6 {[%clk 0:01:29.2]} 15. Qd4 {[%clk 0:02:07.1]}
15... Qxd4 {[%clk 0:01:24]} 16. exd4 {[%clk 0:02:06.5]} 16... Nd7 {[%clk
0:01:21]} 17. Nb5 {[%clk 0:02:03.1]} 17... d5 {[%clk 0:01:19.7]} 18. cxd5 {[%clk
0:01:58.3]} 18... exd5 {[%clk 0:01:19]} 19. Nc7 {[%clk 0:01:53.6]} 19... Rb8
{[%clk 0:01:19.5]} 20. Nxd5 {[%clk 0:01:53.3]} 20... Rd8 {[%clk 0:01:16.4]} 21.
Rac1 {[%clk 0:01:48.5]} 21... Kf8 {[%clk 0:01:12.6]} 22. Ne3 {[%clk 0:01:41.6]}
22... Nf6 {[%clk 0:01:12.3]} 23. d5 {[%clk 0:01:41]} 23... b6 {[%clk 0:01:10.3]}
24. Rc7 {[%clk 0:01:38.6]} 24... Bb7 {[%clk 0:01:10.7]} 25. Rfc1 {[%clk
0:01:25.9]} 25... a5 {[%clk 0:01:03.4]} 26. Rd1 {[%clk 0:01:08]} 26... g6 {[%clk
0:00:56.5]} 27. d6 {[%clk 0:00:58]} 27... Bxg2 {[%clk 0:00:57.4]} 28. Kxg2
{[%clk 0:00:57.5]} 28... Ne4 {[%clk 0:00:48.9]} 29. Nc4 {[%clk 0:00:51.1]} 29...
b5 {[%clk 0:00:42]} 30. Ne5 {[%clk 0:00:50.5]} 30... Kg8 {[%clk 0:00:32.4]} 31.
Nxf7 {[%clk 0:00:47.9]} 31... Rf8 {[%clk 0:00:26.9]} 32. d7 {[%clk 0:00:44.4]}
32... Rxf7 {[%clk 0:00:13.4]} 33. Rc8+ {[%clk 0:00:44.1]} 1-0